fUSD/lending_fUSD_20240907
["ID","MTS","AMOUNT","RATE_DAILY","PERIOD"]
[337478802,1725688240084,-150.0,0.00014828,2]
[337478803,1725688240094,-150.0,0.0001483,2]
[337478804,1725688240103,-150.0,0.0001483,2]
[337478805,1725688240112,-150.0,0.00014831,2]
[337478806,1725688240122,-150.0,0.00014834,2]
[337478807,1725688240131,-150.0,0.00014837,2]
[337478808,1725688240140,-150.0,0.00014838,2]
[337478809,1725688240150,-150.0,0.00014844,2]
[337478810,1725688240159,-150.0,0.00014853,2]
[337478811,1725688240168,-150.0,0.00014857,2]
[337478812,1725688240178,-150.0,0.00014857,2]
[337478813,1725688240187,-150.0,0.00014859,2]
[337478814,1725688240196,-150.0,0.0001486,2]
[337478815,1725688240206,-150.0,0.00014861,2]
[337478816,1725688240215,-150.0,0.00014862,2]
[337478817,1725688240225,-150.0,0.00014867,2]
[337478818,1725688240234,-150.0,0.0001487,2]
[337478819,1725688240244,-150.0,0.00014875,2]
[337478820,1725688240253,-150.0,0.00014879,2]
[337478821,1725688240262,-150.0,0.00014886,2]
[337478822,1725688240271,-150.0,0.00014892,2]
[337478823,1725688240281,-150.0,0.00014894,2]
[337478824,1725688240290,-150.0,0.00014897,2]
[337478825,1725688240300,-150.0,0.00014897,2]
[337478826,1725688240310,-150.0,0.00014898,2]
[337478827,1725688240319,-150.0,0.000149,2]
[337478828,1725688240330,-5070.3796748,0.000149,2]
[337478829,1725688240339,-172.17551893,0.000149,2]
[337478830,1725688240348,-169.14363358,0.000149,2]
[337478831,1725688240358,-328.60153968,0.000149,2]
[337478832,1725688240367,-1959.0,0.000149,2]
[337478833,1725688240377,-260.28039107,0.000149,2]
[337478834,1725688240386,-150.0,0.00014908,2]
[337478835,1725688240396,-150.0,0.00014909,2]
[337478836,1725688240405,-150.0,0.00014909,2]
[337478837,1725688240415,-168.762,0.00014921,2]
[337478838,1725688240424,-150.0,0.00014922,2]
[337478839,1725688240434,-150.0,0.00014922,2]
[337478840,1725688240444,-150.0,0.00014925,2]
[337478841,1725688240453,-150.0,0.00014927,2]
[337478842,1725688240462,-150.0,0.0001493,2]
[337478843,1725688240472,-150.0,0.00014932,2]
[337478844,1725688240481,-150.0,0.00014933,2]
[337478846,1725688240491,-150.0,0.00014941,2]
[337478847,1725688240500,-150.0,0.00014944,2]
[337478849,1725688240510,-150.0,0.00014945,2]
[337478851,1725688240518,-150.0,0.00014945,2]
[337478853,1725688240528,-150.0,0.00014946,2]
[337478855,1725688240537,-150.0,0.00014948,2]
[337478857,1725688240546,-150.0,0.00014956,2]
[337478859,1725688240556,-150.0,0.00014956,2]
[337478861,1725688240565,-150.0,0.00014959,2]
[337478863,1725688240576,-150.0,0.0001496,2]
[337478865,1725688240593,-150.0,0.00014961,2]
[337478867,1725688240602,-150.0,0.00014967,2]
[337478869,1725688240611,-150.0,0.0001497,2]
[337478871,1725688240621,-500.0,0.00014973,2]
[337478873,1725688240631,-500.0,0.00014973,2]
[337478875,1725688240640,-150.0,0.00014973,2]
[337478877,1725688240649,-150.0,0.00014978,2]
[337478879,1725688240658,-150.0,0.00014986,2]
[337478881,1725688240668,-22047.8268518,0.0001499,7]
[337478883,1725688240677,-151.64,0.0001499,2]
[337478885,1725688240686,-151.64,0.0001499,2]
[337478886,1725688240696,-151.64,0.0001499,2]
[337478888,1725688240705,-151.64,0.0001499,2]
[337478890,1725688240714,-151.64,0.0001499,2]
[337478892,1725688240724,-151.64,0.0001499,2]
[337478894,1725688240734,-151.64,0.0001499,2]
[337478896,1725688240743,-151.64,0.0001499,2]
[337478898,1725688240752,-151.64,0.0001499,2]
[337478900,1725688240761,-150.0,0.00014994,2]
[337478902,1725688240770,-150.0,0.00014995,2]
[337478904,1725688240779,-150.0,0.00014998,2]
[337478906,1725688240788,-670.66313,0.00014998,2]
[337478908,1725688240798,-309.9177767,0.00014998,2]
[337478910,1725688240807,-878.17,0.00014998,2]
[337478912,1725688240816,-514.69766646,0.00014999,2]
[337478914,1725688240825,-878.17,0.00014999,2]
[337478916,1725688240834,-878.17,0.00014999,2]
[337478918,1725688240843,-878.17,0.00014999,2]
[337478919,1725688240852,-878.17,0.00014999,2]
[337478921,1725688240861,-878.17,0.00014999,2]
[337478922,1725688240870,-878.17,0.00014999,2]
[337478923,1725688240879,-878.20085012,0.00014999,2]
[337478924,1725688240889,-630209.73934931,0.00015,2]
[337478925,1725688240898,-5000.0,0.00015,2]
[337478926,1725688240907,-1852850.40192712,0.00015,2]
[337478927,1725688240916,-1449540.82567133,0.00015,2]
[337478928,1725688240931,-1301.775,0.00015,2]
[337478929,1725688240942,-655.6964493,0.00015,2]
[337478930,1725688240952,-517.15912167,0.00015,2]
[337478931,1725688241106,-150.0,0.00014729,2]
[337478932,1725688241116,-150.0,0.00014732,2]
[337478933,1725688241126,-150.0,0.00014734,2]
[337478934,1725688241135,-150.0,0.00014737,2]
[337478935,1725688241145,-44.08472678,0.00014753,2]
[337478936,1725688241156,-105.91527322,0.00014753,2]
[337478937,1725688241165,-150.0,0.00014777,2]
[337478938,1725688241175,-150.0,0.00014783,2]
[337478939,1725688241184,-150.0,0.00014789,2]
[337478940,1725688241194,-150.0,0.00014793,2]
[337478941,1725688241203,-150.0,0.00014807,2]
[337478942,1725688241214,-150.0,0.0001482,2]
[337478943,1725688241224,-150.0,0.00014829,2]
[337478944,1725688241233,-150.0,0.00014851,2]
[337478945,1725688241242,-150.0,0.00014863,2]
[337478946,1725688241251,-150.0,0.00014872,2]
[337478947,1725688241260,-150.0,0.00014883,2]
[337478948,1725688241269,-150.0,0.00014884,2]
[337478949,1725688241278,-150.0,0.00014892,2]
[337478950,1725688241288,-150.0,0.00014896,2]
[337478951,1725688241299,-150.0,0.00014908,2]
[337478952,1725688241308,-150.0,0.0001492,2]
[337478953,1725688241317,-150.0,0.00014924,2]
[337478954,1725688241327,-150.0,0.00014924,2]
[337478955,1725688241336,-120.48681788,0.00014927,2]
[337478956,1725688241352,-29.51318212,0.00014927,2]
[337478957,1725688241361,-150.0,0.00014934,2]
[337478958,1725688241370,-150.0,0.00014948,2]
[337478959,1725688241380,-150.0,0.00014973,2]
[337478960,1725688241390,-150.0,0.00014981,2]
[337478961,1725688241400,-150.0,0.00014983,2]
[337478962,1725688241410,-150.0,0.00014987,2]
[337478963,1725688241419,-150.0,0.00014989,2]
[337478964,1725688241428,-110662.99117606,0.00015,2]
[337478965,1725688241456,-150.0,0.00014755,2]
[337478966,1725688241465,-150.0,0.00014808,2]
[337478967,1725688241475,-150.0,0.00014983,2]
[337478968,1725688241484,-674.02077438,0.00015,2]
[337478969,1725688241496,-1194.05,0.00015,2]
[337478970,1725688241507,-369.9035963,0.00015,2]
[337478971,1725688241517,-578.60900341,0.00015,2]
[337478972,1725688241528,-8393.407154,0.00015,2]
[337478973,1725688241543,-150.0,0.00014923,2]
[337478974,1725688241552,-5952.1638032,0.00015,2]
[337478975,1725688241563,-7701.58319048,0.00015,2]
[337478976,1725688241591,-150.0,0.00014729,2]
[337478977,1725688241759,-150.0,0.00014838,2]
[337478978,1725688241770,-150.0,0.00014839,2]
[337478979,1725688241779,-150.0,0.00014957,2]
[337478980,1725688241788,-4008.07243216,0.00015,2]
[337478981,1725688241799,-376.955934,0.00015,2]
[337478982,1725688241836,-150.0,0.00014756,2]
[337478983,1725688241845,-150.0,0.00014761,2]
[337478984,1725688241855,-150.0,0.00014844,2]
[337478985,1725688241864,-150.0,0.00014852,2]
[337478986,1725688241874,-150.0,0.00014894,2]
[337478987,1725688241883,-150.0,0.00014992,2]
[337478988,1725688241893,-751.16720551,0.00015,2]
[337479000,1725688242887,-150.0,0.00014727,2]
[337479002,1725688242897,-150.0,0.00014727,2]
[337479003,1725688242907,-150.0,0.00014728,2]
[337479004,1725688242916,-150.0,0.00014731,2]
[337479005,1725688242927,-150.0,0.00014737,2]
[337479006,1725688242937,-150.0,0.00014738,2]
[337479007,1725688242947,-150.0,0.00014742,2]
[337479008,1725688242957,-150.0,0.00014743,2]
[337479009,1725688242968,-55.06367634,0.00014748,2]
[337479010,1725688242980,-94.93632366,0.00014748,2]
[337479011,1725688242991,-150.0,0.00014757,2]
[337479012,1725688243001,-150.0,0.00014764,2]
[337479013,1725688243010,-150.0,0.00014765,2]
[337479014,1725688243021,-150.0,0.00014765,2]
[337479015,1725688243034,-20.43362016,0.0001477,2]
[337479016,1725688243058,-129.56637984,0.0001477,2]
[337479017,1725688243071,-150.0,0.00014776,2]
[337479018,1725688243083,-150.0,0.0001478,2]
[337479019,1725688243093,-150.0,0.00014781,2]
[337479020,1725688243102,-150.0,0.00014788,2]
[337479021,1725688243112,-150.0,0.00014797,2]
[337479022,1725688243124,-150.0,0.00014798,2]
[337479023,1725688243135,-150.0,0.00014798,2]
[337479024,1725688243145,-150.0,0.00014806,2]
[337479025,1725688243155,-150.0,0.00014817,2]
[337479026,1725688243164,-150.0,0.00014821,2]
[337479027,1725688243174,-150.0,0.00014823,2]
[337479028,1725688243183,-150.0,0.00014828,2]
[337479029,1725688243192,-150.0,0.00014829,2]
[337479030,1725688243201,-150.0,0.0001483,2]
[337479031,1725688243210,-150.0,0.00014831,2]
[337479032,1725688243220,-150.0,0.00014832,2]
[337479033,1725688243229,-150.0,0.00014838,2]
[337479034,1725688243238,-150.0,0.0001484,2]
[337479035,1725688243247,-150.0,0.00014855,2]
[337479036,1725688243256,-150.0,0.00014859,2]
[337479037,1725688243265,-150.0,0.00014861,2]
[337479038,1725688243273,-150.0,0.00014865,2]
[337479039,1725688243283,-150.0,0.00014866,2]
[337479040,1725688243292,-150.0,0.00014867,2]
[337479041,1725688243302,-150.0,0.00014869,2]
[337479042,1725688243312,-150.0,0.0001487,2]
[337479043,1725688243321,-150.0,0.00014871,2]
[337479044,1725688243331,-150.0,0.00014871,2]
[337479045,1725688243340,-150.0,0.00014873,2]
[337479046,1725688243350,-150.0,0.00014874,2]
[337479047,1725688243359,-150.0,0.00014883,2]
[337479048,1725688243368,-150.0,0.00014883,2]
[337479049,1725688243378,-150.0,0.00014884,2]
[337479050,1725688243387,-150.0,0.00014885,2]
[337479051,1725688243396,-150.0,0.00014888,2]
[337479052,1725688243405,-150.0,0.00014894,2]
[337479055,1725688243415,-150.0,0.00014894,2]
[337479057,1725688243424,-150.0,0.00014897,2]
[337479060,1725688243433,-150.0,0.00014899,2]
[337479063,1725688243442,-150.0,0.00014901,2]
[337479066,1725688243450,-150.0,0.00014901,2]
[337479069,1725688243459,-150.0,0.00014904,2]
[337479072,1725688243468,-150.0,0.00014906,2]
[337479074,1725688243477,-150.0,0.00014906,2]
[337479077,1725688243485,-150.0,0.00014911,2]
[337479079,1725688243495,-150.0,0.00014913,2]
[337479082,1725688243503,-150.0,0.00014914,2]
[337479083,1725688243512,-150.0,0.00014916,2]
[337479084,1725688243521,-150.0,0.00014917,2]
[337479085,1725688243530,-150.0,0.00014918,2]
[337479086,1725688243539,-150.0,0.0001492,2]
[337479087,1725688243548,-150.0,0.00014922,2]
[337479088,1725688243557,-150.0,0.00014926,2]
[337479089,1725688243566,-150.0,0.00014927,2]
[337479090,1725688243575,-150.0,0.00014931,2]
[337479091,1725688243584,-150.0,0.00014931,2]
[337479092,1725688243593,-150.0,0.00014932,2]
[337479093,1725688243602,-150.0,0.00014932,2]
[337479094,1725688243612,-150.0,0.00014937,2]
[337479095,1725688243621,-150.0,0.00014939,2]
[337479096,1725688243630,-150.0,0.00014941,2]
[337479097,1725688243639,-150.0,0.00014942,2]
[337479098,1725688243648,-150.0,0.00014952,2]
[337479099,1725688243658,-150.0,0.00014958,2]
[337479100,1725688243667,-150.0,0.00014958,2]
[337479101,1725688243678,-150.0,0.0001496,2]
[337479102,1725688243688,-150.0,0.0001496,2]
[337479103,1725688243699,-150.0,0.0001496,2]
[337479104,1725688243710,-150.0,0.00014963,2]
[337479105,1725688243721,-150.0,0.00014964,2]
[337479106,1725688243733,-150.0,0.00014966,2]
[337479107,1725688243743,-150.0,0.00014967,2]
[337479108,1725688243755,-150.0,0.00014968,2]
[337479109,1725688243763,-150.0,0.00014974,2]
[337479110,1725688243772,-150.0,0.00014976,2]
[337479111,1725688243781,-150.0,0.00014983,2]
[337479112,1725688243790,-150.0,0.00014984,2]
[337479113,1725688243798,-150.0,0.00014994,2]
[337479114,1725688243808,-150.0,0.00014995,2]
[337479115,1725688243818,-1021537.36124409,0.00015,2]
[337479116,1725688243833,-3645.02412961,0.00015,2]
[337479117,1725688243843,-931.13278959,0.00015,2]
[337479118,1725688243940,-653.44587086,0.00015,2]
[337479119,1725688243951,-286.93626806,0.00015,2]
[337479120,1725688243963,-831.48450349,0.00015,2]
[337479121,1725688243992,-163.62118738,0.00014818,2]
[337479122,1725688244002,-150.0,0.00014879,2]
[337479123,1725688244013,-11.54789595,0.00014926,2]
[337479124,1725688244027,-138.45210405,0.00014926,2]
[337479125,1725688244040,-333.12968191,0.00015,2]
[337479126,1725688244052,-24856.3089465,0.00015,2]
[337479127,1725688244075,-150.0,0.00014876,2]
[337479128,1725688244090,-2757.52125236,0.00015,2]
[337479129,1725688244107,-150.0,0.00014926,2]
[337479130,1725688244116,-1449.08934919,0.00015,2]
[337479131,1725688244128,-873.04153788,0.00015,2]
[337479132,1725688244138,-985.07438389,0.00015,2]
[337479133,1725688244149,-455.37695136,0.00015,2]
[337479134,1725688244160,-4233.44655774,0.00015,2]
[337479135,1725688244171,-1570.55517767,0.00015,2]
[337479136,1725688244182,-748.63230573,0.00015,2]
[337479137,1725688244192,-427.18428536,0.00015,2]
[337479138,1725688244203,-537.88,0.00015,2]
[337479139,1725688244213,-768.44720034,0.00015,2]
[337479140,1725688244224,-15164.0268957,0.00015,2]
[337479141,1725688244235,-900.5504558,0.00015,2]
[337479144,1725688245948,-1580.85761632,0.00013901,2]
[337479145,1725688245960,-955.05238368,0.00013901,2]
[337479146,1725688245971,-466.42324812,0.00015,2]
[337479147,1725688245983,-420.57675188,0.00015,2]
[337479148,1725688245992,-2017.95889731,0.00015,2]
[337479149,1725688246004,-1000.54103258,0.00015,2]
[337479150,1725688246015,-7533.79919372,0.00015,2]
[337479151,1725688246028,-1740.74654837,0.00015,2]
[337479152,1725688246075,-2227.32105604,0.00015,2]
[337479153,1725688246089,-430.18684934,0.00015,2]
[337479154,1725688246100,-8924.9356803,0.00015,2]
[337479155,1725688246111,-474.70594152,0.00015,2]
[337479156,1725688246122,-553.56974129,0.00015,2]
[337479157,1725688246132,-458.27649239,0.00015,2]
[337479158,1725688246145,-3666.82998998,0.00015,2]
[337479159,1725688246156,-5143.26,0.00015,2]
[337479160,1725688246168,-1295.87497203,0.00015,2]
[337479161,1725688246178,-609.53823585,0.00015,2]
[337479162,1725688246189,-22015.21942346,0.00015,2]
[337479163,1725688246208,-29900.94388131,0.00015,2]
[337479164,1725688246224,-319.05387276,0.00015,2]
[337479165,1725688246234,-11753.76194839,0.00015,2]
[337479166,1725688246246,-12135.87654505,0.00015,2]
[337479167,1725688246256,-4384.21845263,0.00015,2]
[337479168,1725688246267,-506.28464956,0.00015,2]
[337479169,1725688246306,-5441.4,0.00015,2]
[337479191,1725688376522,154.83,0.00010959,2]
[337479205,1725688637723,646.6,0.00011544,2]
[337479206,1725688720449,799.63,0.00010959,2]
[337479208,1725688870579,154.82,0.00010959,2]
[337479210,1725689060234,1002.0,0.00031437,30]
[337479211,1725689131586,666.39,0.00010299,2]
[337479214,1725689181699,750.0,0.00011,2]
[337479223,1725689333628,-540.041776,0.0001202,2]
[337479224,1725689333854,-250.0,0.00012081,2]
[337479225,1725689333885,-11498.26130635,0.00012081,2]
[337479226,1725689333921,-11188.14502514,0.00012081,2]
[337479321,1725689351220,263.77,0.00010959,2]
[337479326,1725689381597,313.58875391,0.00012007,2]
[337479327,1725689416537,172.57,0.00011969,2]
[337479339,1725689432120,-1213.59366851,0.00012081,2]
[337479341,1725689432129,-166.72,0.00012107,2]
[337479343,1725689432138,-76.4768824,0.00012137,2]
[337479346,1725689432149,-740.84370137,0.00012137,2]
[337479347,1725689432159,-250.0,0.00012174,2]
[337479348,1725689432167,-172.8,0.00012237,2]
[337479349,1725689432176,-817.32058377,0.00012337,2]
[337479350,1725689432185,-797.6216,0.00012399,2]
[337479351,1725689432194,-292.34430382,0.00012437,2]
[337479352,1725689432203,-582.72,0.00012499,2]
[337479353,1725689432212,-150.0,0.00012499,2]
[337479354,1725689432221,-159.72429131,0.000125,2]
[337479355,1725689432230,-41669.01,0.000125,2]
[337479356,1725689432239,-666.39,0.00012563,2]
[337479357,1725689432248,-695.12,0.00012699,2]
[337479358,1725689432257,-633.8743,0.000127,2]
[337479359,1725689432266,-5739.678,0.000127,2]
[337479360,1725689432275,-2930.1081,0.000127,2]
[337479361,1725689432284,-297.2442,0.000127,2]
[337479362,1725689432293,-1474.6495,0.000127,2]
[337479363,1725689432303,-1613.8272,0.000127,2]
[337479364,1725689432312,-407.8642,0.000127,2]
[337479365,1725689432322,-176.9066,0.000127,2]
[337479366,1725689432333,-2500.0,0.000127,2]
[337479367,1725689432343,-516.2,0.00012702,2]
[337479368,1725689432354,-499.99,0.00012702,2]
[337479369,1725689432365,-6185.79438863,0.00012704,2]
[337479370,1725689432375,-3916.49518674,0.0001278,2]
[337479371,1725689432385,-13173.415,0.0001279,2]
[337479372,1725689432396,-13724.8151,0.0001279,2]
[337479373,1725689432409,-496.2913,0.0001279,2]
[337479374,1725689432421,-1682.2527,0.0001279,2]
[337479376,1725689432431,-500.0,0.000128,2]
[337479378,1725689432440,-1000.0,0.000128,2]
[337479380,1725689432451,-13095.255,0.000128,2]
[337479382,1725689432460,-18041.44474436,0.000128,2]
[337479384,1725689432474,-5571.97675564,0.000128,2]
[337479386,1725689432485,-19802.22406828,0.000128,2]
[337479388,1725689432499,-35636.40562476,0.000128,2]
[337479390,1725689432510,-5469.66724752,0.000128,2]
[337479393,1725689432530,-2705.49053353,0.000128,2]
[337479395,1725689432542,-573.86,0.000128,2]
[337479931,1725689438162,-1240.21203335,0.000128,2]
[337479943,1725689438260,-2522.52823519,0.000128,2]
[337479945,1725689438271,-285.763033,0.000128,2]
[337479947,1725689438284,-749.86877271,0.000128,2]
[337479949,1725689438295,-2510.72,0.000128,2]
[337479952,1725689438306,-8752.22233078,0.000128,2]
[337479954,1725689438318,-5041.6,0.000128,2]
[337479956,1725689438329,-14709.43812088,0.000128,2]
[337479958,1725689438338,-1191.34,0.00012804,2]
[337479960,1725689438347,-205.94,0.00012828,2]
[337479962,1725689438356,-160.1,0.00012893,2]
[337479964,1725689438366,-6185.79438863,0.00012948,2]
[337479966,1725689438375,-800.0,0.00013,2]
[337479968,1725689438384,-500.0,0.00013014,2]
[337479970,1725689438392,-250.0,0.00013108,2]
[337479972,1725689438401,-6185.79438863,0.00013192,2]
[337479974,1725689438414,-170.65,0.00013304,2]
[337479976,1725689438423,-6185.79438863,0.00013436,2]
[337479978,1725689438432,-1500.0,0.00013474,2]
[337479980,1725689438441,-299.2,0.00013533,2]
[337479982,1725689438451,-173.36,0.00013544,2]
[337479984,1725689438460,-255.0,0.00013599,2]
[337479986,1725689438469,-827.2,0.00013652,2]
[337479988,1725689438479,-6185.79438863,0.0001368,2]
[337480011,1725689438636,-27066.25788347,0.00013699,2]
[337480016,1725689438733,-20780.49211653,0.00013699,2]
[337480018,1725689438742,-161.44,0.00013699,2]
[337480020,1725689438751,-161.08,0.00013699,2]
[337480022,1725689438761,-172.8,0.00013767,2]
[337480024,1725689438771,-6185.79438863,0.00013924,2]
[337480026,1725689438782,-1106.64,0.00014055,2]
[337480028,1725689438792,-6185.79438863,0.00014168,2]
[337480030,1725689438802,-427.51,0.00014192,2]
[337480032,1725689438811,-150.0,0.00014192,2]
[337480034,1725689438821,-427.51,0.00014192,2]
[337480035,1725689438830,-427.51,0.00014192,2]
[337480038,1725689438839,-427.51,0.00014192,2]
[337480040,1725689438850,-427.51,0.00014192,2]
[337480041,1725689438859,-854.32,0.00014192,2]
[337480043,1725689438869,-6185.79438863,0.00014412,2]
[337480045,1725689438878,-6185.79438863,0.00014656,2]
[337480047,1725689438887,-150.0,0.00014731,2]
[337480049,1725689438897,-150.0,0.00014737,2]
[337480051,1725689438907,-150.0,0.00014754,2]
[337480053,1725689438916,-500.0,0.00014794,2]
[337480055,1725689438926,-593.88801284,0.00014794,2]
[337480057,1725689438936,-500.0,0.00014794,2]
[337480059,1725689438946,-151.0,0.00014794,2]
[337480061,1725689438955,-184.163035,0.00014795,2]
[337480063,1725689438964,-150.0,0.00014799,2]
[337480065,1725689438974,-150.0,0.00014808,2]
[337480067,1725689438984,-150.0,0.0001481,2]
[337480069,1725689438993,-150.0,0.00014814,2]
[337480071,1725689439003,-666.39,0.00014827,2]
[337480073,1725689439012,-1011.04387,0.0001485,2]
[337480075,1725689439022,-150.0,0.00014858,2]
[337480077,1725689439032,-150.0,0.00014871,2]
[337480079,1725689439042,-150.0,0.00014871,2]
[337480081,1725689439052,-500.0,0.00014884,2]
[337480083,1725689439062,-500.0,0.00014892,2]
[337480085,1725689439072,-150.0,0.00014895,2]
[337480087,1725689439082,-345.36063455,0.00014899,2]
[337480090,1725689439092,-153.28569643,0.000149,2]
[337480092,1725689439101,-433.2501,0.000149,2]
[337480094,1725689439111,-150.0,0.000149,2]
[337480095,1725689439120,-1196.244857,0.000149,2]
[337480096,1725689439130,-6185.79438863,0.000149,2]
[337480097,1725689439139,-335.1277,0.000149,2]
[337480098,1725689439148,-5732.85274132,0.000149,2]
[337480099,1725689439158,-334.52555336,0.000149,2]
[337480100,1725689439167,-165.447,0.00014901,2]
[337480101,1725689439177,-500.0,0.00014901,2]
[337480103,1725689439186,-150.0,0.00014909,2]
[337480105,1725689439195,-150.0,0.00014909,2]
[337480107,1725689439205,-500.0,0.0001491,2]
[337480109,1725689439214,-500.0,0.00014919,2]
[337480111,1725689439223,-500.0,0.00014928,2]
[337480113,1725689439232,-150.0,0.0001493,2]
[337480115,1725689439242,-500.0,0.00014936,2]
[337480117,1725689439253,-500.0,0.00014945,2]
[337480119,1725689439262,-150.0,0.00014947,2]
[337480121,1725689439271,-500.0,0.00014954,2]
[337480123,1725689439284,-150.0,0.00014959,2]
[337480125,1725689439293,-500.0,0.00014963,2]
[337480127,1725689439302,-150.0,0.00014963,2]
[337480129,1725689439312,-500.0,0.00014972,2]
[337480131,1725689439321,-247.05348733,0.00014973,2]
[337480133,1725689439330,-501.17200511,0.00014973,2]
[337480135,1725689439341,-502.25331931,0.00014973,2]
[337480137,1725689439350,-150.0,0.00014974,2]
[337480139,1725689439359,-150.0,0.00014975,2]
[337480141,1725689439369,-500.0,0.0001498,2]
[337480143,1725689439378,-173.36,0.00014981,2]
[337480145,1725689439387,-500.0,0.00014989,2]
[337480147,1725689439397,-5800.0,0.0001499,2]
[337480149,1725689439407,-500.0,0.00014998,2]
[337480151,1725689439417,-192.70221311,0.00014999,2]
[337480153,1725689439426,-157.236705,0.00014999,7]
[337480155,1725689439435,-322.15478684,0.00014999,2]
[337480157,1725689439444,-5800.0,0.00014999,2]
[337480159,1725689439454,-500.0,0.00014999,2]
[337480161,1725689439464,-500.0,0.00014999,2]
[337480163,1725689439473,-500.0,0.00014999,2]
[337480165,1725689439483,-500.0,0.00014999,2]
[337480167,1725689439493,-500.0,0.00014999,2]
[337480169,1725689439503,-500.0,0.00014999,2]
[337480171,1725689439512,-500.0,0.00014999,2]
[337480173,1725689439522,-500.0,0.00014999,2]
[337480175,1725689439533,-325.2,0.00014999,2]
[337480177,1725689439542,-953.0,0.00015,2]
[337480179,1725689439551,-42803.98767312,0.00015,2]
[337480181,1725689439563,-451278.14250697,0.00015,2]
[337480183,1725689439573,-114136.0572713,0.00015,2]
[337480185,1725689439583,-70799.34031106,0.00015,2]
[337480188,1725689439594,-2068379.77897409,0.00015,2]
[337480190,1725689439604,-1755828.75987942,0.00015,2]
[337480192,1725689439615,-1915.14999999,0.00015,2]
[337480194,1725689439626,-437.45072285,0.00015,2]
[337480196,1725689439638,-364.0,0.00015,2]
[337480198,1725689439649,-470.83343635,0.00015,2]
[337480201,1725689439661,-380.0,0.00015,2]
[337480203,1725689439672,-663.2,0.00015,2]
[337480252,1725689440126,-1610.53421101,0.00015,2]
[337480254,1725689440148,-3048.32772882,0.00015,2]
[337480257,1725689440160,-30132.31558998,0.00015,2]
[337480259,1725689440171,-370.12127459,0.00015,2]
[337480261,1725689440183,-706.04,0.00015,2]
[337480278,1725689440339,-4832.22556236,0.00015,2]
[337480280,1725689440351,-9920.5,0.00015,2]
[337480283,1725689440361,-440.01645176,0.00015,2]
[337480285,1725689440372,-1799.28778554,0.00015,2]
[337480287,1725689440383,-397.63098387,0.00015,2]
[337480293,1725689440433,-4839.92333949,0.00012948,2]
[337480295,1725689440443,-81173.25754252,0.00015,2]
[337480297,1725689440454,-343.74696498,0.00015,2]
[337480532,1725689443072,-853.0,0.00015,2]
[337480534,1725689443081,-11322.6,0.00015,2]
[337480537,1725689443092,-334.27855698,0.00015,2]
[337480539,1725689443103,-432.0,0.00015,2]
[337480541,1725689443113,-18714.33853905,0.00015,2]
[337480543,1725689443124,-2891.11720088,0.00015,2]
[337480545,1725689443135,-1611.72566351,0.00015,2]
[337480547,1725689443146,-17372.54439704,0.00015,2]
[337480550,1725689443156,-5557.37127244,0.00015,2]
[337480552,1725689443167,-1088.38181584,0.00015,2]
[337480595,1725689443579,-449320.07116783,0.00015,2]